bitfinex/quotes_BTCUSD_20251209
["timestamp","ask_amount","ask_price","bid_price","bid_amount"]
[1765240685563,0.04803,90596.0,90593.0,0.01103838]
[1765240685759,0.04803,90596.0,90593.0,0.23180413]
[1765240686117,0.04803,90596.0,90591.0,0.01103862]
[1765240686118,0.25192572,90594.0,90591.0,0.01103862]
[1765240686317,0.02003,90592.0,90591.0,0.01103862]
[1765240687082,0.02003,90592.0,90589.0,0.01103886]
[1765240687363,0.01744,90591.0,90589.0,0.01103886]
[1765240688540,0.01744,90591.0,90590.0,0.22077491]
[1765240688762,0.01844,90591.0,90590.0,0.22077491]
[1765240688999,0.01844,90591.0,90580.0,0.37075388]
[1765240689000,0.01103947,90584.0,90580.0,0.37075388]
[1765240689203,0.03116,90582.0,90577.0,0.23184518]
[1765240689374,0.03116,90582.0,90577.0,0.01104033]
[1765240689524,0.03116,90582.0,90581.0,0.22118448]
[1765240689718,0.03116,90582.0,90581.0,0.00038763]
[1765240689922,0.07619,90582.0,90581.0,0.00038763]
[1765240690523,0.09819,90582.0,90581.0,0.00138763]
[1765240690697,0.07619,90582.0,90581.0,0.00138763]
[1765240691077,0.07619,90582.0,90581.0,0.00238763]
[1765240691253,0.07619,90582.0,90581.0,0.00138763]
[1765240691460,0.09819,90582.0,90581.0,0.00038763]
[1765240691686,0.07719,90582.0,90581.0,0.00038763]
[1765240692511,0.001,90582.0,90581.0,0.22118448]
[1765240692684,0.001,90582.0,90581.0,0.25423448]
[1765240692685,0.01844,90582.0,90581.0,0.25423448]
[1765240692889,0.001,90582.0,90581.0,0.30000448]
[1765240693289,0.001,90582.0,90581.0,0.25423448]
[1765240693953,0.01744,90588.0,90587.0,0.22078223]
[1765240695543,0.01844,90588.0,90586.0,0.07720517]
[1765240696118,0.01844,90588.0,90586.0,0.29798755]
[1765240696326,0.01844,90588.0,90586.0,0.29798771]
[1765240696929,0.01844,90588.0,90586.0,0.07720517]
[1765240697129,0.01744,90588.0,90586.0,0.07720517]
[1765240697447,0.01844,90588.0,90586.0,0.07720517]
[1765240697860,0.031,90587.0,90586.0,0.07720517]
[1765240698343,0.0801,90587.0,90586.0,0.07720517]
[1765240698543,0.23182901,90584.0,90581.0,0.00038763]
[1765240698765,0.23182714,90585.0,90583.0,0.07720517]
[1765240698970,0.22078954,90584.0,90583.0,0.07720517]
[1765240699130,0.01103935,90585.0,90583.0,0.07720517]
[1765240699336,0.031,90584.0,90583.0,0.07720517]
[1765240699995,0.0801,90584.0,90583.0,0.07720517]
[1765240700197,0.30088954,90584.0,90583.0,0.07720517]
[1765240700362,0.30088954,90584.0,90583.0,0.07820517]
[1765240701667,0.30088954,90584.0,90583.0,0.07920517]
[1765240703071,0.031,90584.0,90583.0,0.07920517]
[1765240703271,0.0801,90584.0,90583.0,0.07920517]
[1765240712678,0.0801,90584.0,90583.0,0.29999715]
[1765240712852,0.10153,90584.0,90583.0,0.29999715]
[1765240715157,0.02143,90584.0,90583.0,0.29999715]
[1765240715435,0.02143,90594.0,90593.0,0.2207676]
[1765240715591,0.03887,90594.0,90593.0,0.2207676]
[1765240716483,0.04087,90594.0,90593.0,0.2207676]
[1765240716723,0.04187,90594.0,90593.0,0.2207676]
[1765240717624,0.04087,90594.0,90593.0,0.2207676]
[1765240717823,0.04087,90594.0,90591.0,0.01103862]
[1765240717991,0.12097,90594.0,90593.0,0.001]
[1765240718199,0.07187,90594.0,90593.0,0.001]
[1765240718872,0.06987,90594.0,90593.0,0.001]
[1765240719258,0.06987,90594.0,90592.0,0.22076843]
[1765240722646,0.05243,90594.0,90592.0,0.22076843]
[1765240722895,0.01744,90593.0,90592.0,0.22076843]
[1765240723264,0.02653,90600.0,90597.0,0.23179506]
[1765240723598,0.01103789,90597.0,90594.0,0.01103825]
[1765240724006,0.01103777,90598.0,90595.0,0.01103813]
[1765240724208,0.01103777,90598.0,90597.0,0.07720517]
[1765240724409,0.05914777,90598.0,90597.0,0.07720517]
[1765240724622,0.08978777,90598.0,90597.0,0.07720517]
[1765240724983,0.07875,90598.0,90597.0,0.07720517]
[1765240726343,0.07975,90598.0,90597.0,0.07720517]
[1765240730442,0.001,90598.0,90597.0,0.07925]
[1765240730639,0.001,90598.0,90597.0,0.15645517]
[1765240730848,0.001,90598.0,90597.0,0.48884917]
[1765240731618,0.01744,90604.0,90601.0,0.0110374]
[1765240731819,0.01744,90604.0,90603.0,0.02182]
[1765240732443,0.00139999,90610.0,90607.0,0.22073349]
[1765240732681,0.01905287,90608.0,90607.0,0.22073349]
[1765240732856,0.00161287,90608.0,90607.0,0.22073349]
[1765240733065,0.00161287,90608.0,90607.0,0.29998349]
[1765240733594,0.00161287,90608.0,90607.0,0.30098349]
[1765240734137,0.00161287,90608.0,90607.0,0.25285349]
[1765240734520,0.00161287,90608.0,90607.0,0.22173349]
[1765240734684,0.30109393,90608.0,90605.0,0.01103691]
[1765240734884,0.03064,90606.0,90603.0,0.22074153]
[1765240735121,0.04167679,90606.0,90602.0,0.01103728]
[1765240735333,0.04167679,90606.0,90601.0,0.23178309]
[1765240735334,0.03064,90603.0,90601.0,0.23178309]
[1765240735710,0.04811,90605.0,90599.0,0.22075159]
[1765240735711,0.01103704,90604.0,90599.0,0.22075159]
[1765240735921,0.03064,90602.0,90599.0,0.22075159]
[1765240736123,0.03064,90602.0,90599.0,0.01103764]
[1765240736325,0.03064,90602.0,90601.0,0.22074811]
[1765240737772,0.03064,90602.0,90595.0,0.02603813]
[1765240737773,0.23178727,90601.0,90596.0,0.01103801]
[1765240737950,0.05911752,90600.0,90599.0,0.07720517]
[1765240738151,0.06555,90600.0,90599.0,0.07720517]
[1765240738359,0.08817,90600.0,90599.0,0.07720517]
[1765240739183,0.09017,90600.0,90599.0,0.07720517]
[1765240739615,0.09617,90600.0,90599.0,0.07720517]
[1765240739808,0.12681,90600.0,90599.0,0.07720517]
[1765240740183,0.0787,90600.0,90599.0,0.07720517]
[1765240740392,0.04806,90600.0,90599.0,0.07720517]
[1765240740802,0.02544,90600.0,90599.0,0.15645517]
[1765240741168,0.008,90600.0,90599.0,0.15645517]
[1765240741727,0.008,90600.0,90599.0,1.04064404]
[1765240741935,0.008,90600.0,90599.0,0.71696617]
[1765240745557,0.008,90600.0,90599.0,0.68009717]
[1765240748375,0.02767,90600.0,90599.0,0.07720517]
[1765240749604,0.09664,90600.0,90599.0,0.07720517]
[1765240754877,0.31739055,90600.0,90599.0,0.07720517]
[1765240755028,0.23180169,90595.0,90590.0,0.38182372]
[1765240755237,0.04495,90595.0,90592.0,0.23180681]
[1765240755500,0.05956,90594.0,90592.0,0.23180681]
[1765240755619,0.02751,90593.0,90592.0,0.23180681]
[1765240755817,0.02751,90593.0,90587.0,0.132184]
[1765240755818,0.01103874,90590.0,90587.0,0.132184]
[1765240756030,0.01103874,90590.0,90581.0,0.00038763]
[1765240756031,0.01103947,90584.0,90581.0,0.00038763]
[1765240756237,0.04894,90582.0,90581.0,0.00038763]
[1765240756746,0.08938,90582.0,90581.0,0.00038763]
[1765240756922,0.11138,90582.0,90581.0,0.00038763]
[1765240757258,0.08938,90582.0,90581.0,0.00038763]
[1765240759023,0.11138,90582.0,90581.0,0.00238763]
[1765240759540,0.08938,90582.0,90581.0,0.00238763]
[1765240759741,0.11138,90582.0,90581.0,0.00238763]
[1765240760148,0.08938,90582.0,90581.0,0.00238763]
[1765240760307,0.11138,90582.0,90581.0,0.00238763]
[1765240761048,0.08938,90582.0,90581.0,0.00238763]
[1765240762641,0.11138,90582.0,90581.0,0.00238763]
[1765240762885,0.08938,90582.0,90581.0,0.00238763]
[1765240763294,0.11138,90582.0,90581.0,0.00238763]
[1765240764048,0.08938,90582.0,90581.0,0.00238763]
[1765240764646,0.11138,90582.0,90581.0,0.00238763]
[1765240765994,0.08938,90582.0,90581.0,0.00238763]
[1765240766985,0.1169793,90582.0,90581.0,0.00238763]
[1765240767703,0.1389793,90582.0,90581.0,0.00238763]
[1765240770560,0.1169793,90582.0,90581.0,0.00238763]
[1765240771078,0.08938,90582.0,90581.0,0.00238763]
[1765240771301,0.10682,90582.0,90581.0,0.00238763]
[1765240771730,0.08938,90582.0,90581.0,0.00238763]
[1765240771934,0.10682,90582.0,90581.0,0.00238763]
[1765240774286,0.1344193,90582.0,90581.0,0.00238763]
[1765240775388,0.1564193,90582.0,90581.0,0.00238763]
[1765240778052,0.1344193,90582.0,90581.0,0.00238763]
[1765240779984,0.08938,90582.0,90581.0,0.00238763]
[1765240780224,0.06638,90582.0,90581.0,0.00238763]
[1765240781141,0.01847,90586.0,90583.0,0.01103959]
[1765240781286,0.01847,90586.0,90585.0,0.2207871]
[1765240781493,0.03591,90586.0,90585.0,0.2207871]
[1765240782401,0.03691,90586.0,90585.0,0.2207871]
[1765240782857,0.03591,90586.0,90585.0,0.2217871]
[1765240783757,0.02143,90591.0,90588.0,0.23181775]
[1765240783956,0.01744,90590.0,90588.0,0.23181775]
[1765240784121,0.02143,90591.0,90588.0,0.23181775]
[1765240784343,0.01744,90590.0,90588.0,0.01103898]
[1765240784531,0.01103886,90589.0,90586.0,0.07720517]
[1765240784759,0.02815,90587.0,90585.0,0.08020517]
[1765240784933,0.26265466,90586.0,90585.0,0.08020517]
[1765240785338,0.30522466,90586.0,90585.0,0.08020517]
[1765240785609,0.30522466,90586.0,90581.0,0.00038763]
[1765240785610,0.22079441,90582.0,90581.0,0.00038763]
[1765240785759,0.24894441,90582.0,90581.0,0.00038763]
[1765240785955,0.29151441,90582.0,90581.0,0.00038763]
[1765240786677,0.31351441,90582.0,90581.0,0.00038763]
[1765240787086,0.29151441,90582.0,90581.0,0.00438763]
[1765240787293,0.31351441,90582.0,90581.0,0.00438763]
[1765240787504,0.29151441,90582.0,90581.0,0.00438763]
[1765240788113,0.31351441,90582.0,90581.0,0.00438763]
[1765240788338,0.29151441,90582.0,90581.0,0.00538763]
[1765240788923,0.31351441,90582.0,90581.0,0.00538763]
[1765240789128,0.29151441,90582.0,90581.0,0.00538763]
[1765240789312,0.31351441,90582.0,90581.0,0.00538763]
[1765240790771,0.29151441,90582.0,90581.0,0.00538763]
[1765240790935,0.01372,90586.0,90582.0,0.22079441]
[1765240791139,0.04257,90585.0,90582.0,0.22079441]
[1765240791945,0.05360935,90585.0,90581.0,0.00038763]
[1765240792283,0.05360935,90585.0,90582.0,0.002]
[1765240792477,0.05360935,90585.0,90581.0,0.00038763]
[1765240792662,0.05360935,90585.0,90582.0,0.002]
[1765240792847,0.05360935,90585.0,90581.0,0.00038763]
[1765240792848,0.05360935,90585.0,90581.0,0.01142747]
[1765240793248,0.05360935,90585.0,90581.0,0.01342747]
[1765240793446,0.05360935,90585.0,90581.0,0.01142747]
[1765240793866,0.05360935,90585.0,90582.0,0.002]
[1765240794202,0.01103935,90585.0,90582.0,0.002]
[1765240794618,0.05360935,90585.0,90582.0,0.002]
[1765240795176,0.05360935,90585.0,90581.0,0.23222262]
[1765240795373,0.05360947,90584.0,90581.0,0.00038763]
[1765240795641,0.02815,90582.0,90581.0,0.00238763]
[1765240795843,0.02815,90582.0,90581.0,0.00038763]
[1765240795966,0.07072,90582.0,90581.0,0.00038763]
[1765240796382,0.02815,90582.0,90581.0,0.00038763]
[1765240796680,0.02815,90582.0,90581.0,0.00238763]
[1765240796924,0.02815,90582.0,90581.0,0.00038763]
[1765240798441,0.02815,90582.0,90581.0,0.00338763]
[1765240798829,0.04559,90582.0,90581.0,0.00338763]
[1765240800004,0.02815,90582.0,90581.0,0.00338763]
[1765240800213,0.01103935,90585.0,90582.0,0.01103972]
[1765240800434,0.01744,90584.0,90582.0,0.01103972]
[1765240800615,0.02847947,90584.0,90581.0,0.01442747]
[1765240800831,0.01744,90584.0,90582.0,0.22079441]
[1765240801380,0.01372,90586.0,90585.0,0.2207871]
[1765240801581,0.08140152,90593.0,90585.0,0.2207871]
[1765240801582,0.01103874,90590.0,90587.0,0.01103911]
[1765240801784,0.01744,90589.0,90588.0,0.07720517]
[1765240802098,0.01103813,90595.0,90592.0,0.0110385]
[1765240802225,0.01103813,90595.0,90591.0,0.01103862]
[1765240802431,0.01103947,90584.0,90581.0,0.01142747]
[1765240802637,0.01103947,90584.0,90581.0,0.00038763]
[1765240802638,0.03852,90582.0,90581.0,0.00038763]
[1765240803462,0.01315,90582.0,90581.0,0.22118448]
[1765240803667,0.01744,90584.0,90581.0,0.23222432]
[1765240803866,0.01744,90584.0,90581.0,0.23322432]
[1765240804271,0.22079198,90583.0,90581.0,0.00138763]
[1765240804885,0.22079198,90583.0,90581.0,0.00538763]
[1765240805304,0.22079198,90583.0,90581.0,0.00038763]
[1765240805305,0.25800198,90583.0,90581.0,0.00038763]
[1765240805523,0.25800198,90583.0,90581.0,0.00538763]
[1765240805974,0.02847947,90584.0,90581.0,0.01642747]
[1765240806089,0.02847947,90584.0,90581.0,0.01542747]
[1765240806300,0.02847947,90584.0,90581.0,0.01642747]
[1765240806831,0.02847947,90584.0,90581.0,0.01542747]
[1765240807201,0.02847947,90584.0,90581.0,0.01242747]
[1765240807757,0.02847947,90584.0,90581.0,0.01642747]
[1765240808115,0.01744,90584.0,90582.0,0.22079441]
[1765240809230,0.01744,90584.0,90582.0,0.005]
[1765240809434,0.02537,90583.0,90582.0,0.005]
[1765240809864,0.06258,90583.0,90582.0,0.005]
[1765240810537,0.06258,90583.0,90582.0,0.001]
[1765240810873,0.08002,90583.0,90582.0,0.005]
[1765240811237,0.08002,90583.0,90582.0,0.004]
[1765240811815,0.08002,90583.0,90582.0,0.005]
[1765240812172,0.04281,90583.0,90582.0,0.005]
[1765240815221,0.07891,90583.0,90582.0,0.005]
[1765240815795,0.04281,90583.0,90582.0,0.005]
[1765240817955,0.07891,90583.0,90582.0,0.005]
[1765240818986,0.01744,90583.0,90582.0,0.005]
[1765240819125,0.01744,90583.0,90582.0,0.22579441]
[1765240819332,0.01744,90583.0,90582.0,0.005]
[1765240821677,0.07786,90583.0,90582.0,0.005]
[1765240822050,0.04176,90583.0,90582.0,0.005]
[1765240822252,0.01744,90583.0,90582.0,0.005]
[1765240822715,0.29865198,90583.0,90582.0,0.005]
[1765240823005,0.32065198,90583.0,90582.0,0.005]
[1765240823358,0.29865198,90583.0,90582.0,0.005]
[1765240823564,0.32065198,90583.0,90582.0,0.005]
[1765240824111,0.29865198,90583.0,90582.0,0.005]
[1765240824882,0.01744,90583.0,90582.0,0.005]
[1765240825827,0.01103935,90585.0,90582.0,0.01603972]
[1765240826048,0.01744,90583.0,90582.0,0.01603972]
[1765240826576,0.02418923,90586.0,90582.0,0.23283203]
[1765240826742,0.02432,90583.0,90582.0,0.001]
[1765240826996,0.02432,90583.0,90582.0,0.004]
[1765240827155,0.02432,90583.0,90581.0,0.00038763]
[1765240827156,0.22079441,90582.0,90581.0,0.00038763]
[1765240827305,0.24511441,90582.0,90581.0,0.00038763]
[1765240827514,0.28121441,90582.0,90581.0,0.00038763]
[1765240829772,0.28121441,90582.0,90581.0,0.00238763]
[1765240831173,0.29153596,90582.0,90581.0,0.00238763]
[1765240831532,0.31353596,90582.0,90581.0,0.00238763]
[1765240832045,0.31353596,90582.0,90581.0,0.00038763]
[1765240832497,0.31353596,90582.0,90581.0,0.00238763]
[1765240833759,0.34669614,90582.0,90581.0,0.00238763]
[1765240834510,0.42472495,90582.0,90581.0,0.00238763]
[1765240837576,0.66969614,90582.0,90581.0,0.00238763]
[1765240838763,0.66969614,90582.0,90581.0,0.00038763]
[1765240838967,0.64769614,90582.0,90581.0,0.00038763]
[1765240839238,0.67069614,90582.0,90581.0,0.00038763]
[1765240839530,0.67169614,90582.0,90581.0,0.00038763]
[1765240840203,0.64969614,90582.0,90581.0,0.00038763]
[1765240840353,0.78017542,90582.0,90581.0,0.00038763]
[1765240840530,0.80395627,90582.0,90581.0,0.00038763]
[1765240841569,0.69547699,90582.0,90581.0,0.00038763]
[1765240841949,0.67169614,90582.0,90581.0,0.00038763]
[1765240842159,0.68913614,90582.0,90581.0,0.00038763]
[1765240842355,0.71291699,90582.0,90581.0,0.00038763]
[1765240842534,0.74265124,90582.0,90581.0,0.00038763]
[1765240842742,0.71291699,90582.0,90581.0,0.00038763]
[1765240842938,0.82139627,90582.0,90581.0,0.00038763]
[1765240846209,0.00199998,90550.0,90541.0,0.07720517]
[1765240846445,0.22089072,90543.0,90541.0,0.07729085]
[1765240846791,0.07593,90542.0,90541.0,0.07729085]
[1765240847401,0.03304435,90544.0,90541.0,0.07729085]
[1765240847402,0.01104435,90544.0,90541.0,0.07729085]
[1765240847604,0.23193345,90544.0,90541.0,0.07729085]
[1765240847802,0.02357,90542.0,90541.0,0.07729085]
[1765240848188,0.24446196,90542.0,90541.0,0.07929085]
[1765240848393,0.28041196,90542.0,90541.0,0.07729085]
[1765240848831,0.28041196,90542.0,90541.0,0.08529085]
[1765240849007,0.02357,90542.0,90541.0,0.07929085]
[1765240849221,0.23193345,90544.0,90541.0,0.07929085]
[1765240849420,0.001,90542.0,90541.0,0.08529085]
[1765240850155,0.28141196,90542.0,90541.0,0.08329085]
[1765240850302,0.28141196,90542.0,90541.0,0.08529085]
[1765240851205,0.28041196,90542.0,90541.0,0.07929085]
[1765240851412,0.24446196,90542.0,90541.0,0.07929085]
[1765240851657,0.28041196,90542.0,90541.0,0.08329085]
[1765240851858,0.24446196,90542.0,90541.0,0.07929085]
[1765240852186,0.24546196,90542.0,90541.0,0.08629085]
[1765240852722,0.28141196,90542.0,90541.0,0.08629085]
[1765240853567,0.24546196,90542.0,90541.0,0.08629085]
[1765240853770,0.001,90542.0,90541.0,0.08629085]
[1765240860308,0.06052,90542.0,90541.0,0.08629085]
[1765240860523,0.08813149,90542.0,90541.0,0.08629085]
[1765240861161,0.11013149,90542.0,90541.0,0.08629085]
[1765240861313,0.06213287,90542.0,90541.0,0.00908568]
[1765240861516,0.08974436,90542.0,90541.0,0.00908568]
[1765240861723,0.11174436,90542.0,90541.0,0.00908568]
[1765240862317,0.14491517,90542.0,90541.0,0.00708568]
[1765240862564,0.14491517,90542.0,90541.0,0.00808568]
[1765240863574,0.14391517,90542.0,90541.0,0.00108568]
[1765240863805,0.14391517,90542.0,90541.0,0.00508568]
[1765240863996,0.14491517,90542.0,90541.0,0.00508568]
[1765240864202,0.2440588,90531.0,90530.0,0.36698212]
[1765240864366,0.01104679,90524.0,90521.0,0.37089644]
[1765240864565,0.01104679,90524.0,90521.0,0.01113285]
[1765240864771,0.022,90526.0,90522.0,0.01104703]
[1765240864978,0.22093344,90525.0,90521.0,0.01113285]
[1765240865165,0.01104679,90524.0,90521.0,8.569e-05]
[1765240865374,0.01104667,90525.0,90522.0,0.22094076]
[1765240865575,0.01104667,90525.0,90521.0,0.01113285]
[1765240866097,0.23198023,90525.0,90521.0,0.01113285]
[1765240866490,0.04756604,90530.0,90524.0,0.01104679]
[1765240866907,0.01104618,90529.0,90525.0,0.01104667]
[1765240867212,0.02314,90526.0,90525.0,0.01104667]
[1765240867412,0.02314,90526.0,90524.0,0.01104679]
[1765240867573,0.0110463,90528.0,90525.0,0.01104667]
[1765240868567,0.01620999,90540.0,90534.0,0.01104557]
[1765240868772,0.01744,90539.0,90536.0,0.07720517]
[1765240869613,0.2383397,90539.0,90536.0,0.07720517]
[1765240869857,0.2535497,90539.0,90536.0,0.07720517]
[1765240870317,0.26459466,90539.0,90536.0,0.07720517]
[1765240870459,0.02625496,90539.0,90536.0,0.07720517]
[1765240870661,0.01744,90538.0,90536.0,0.31215704]
[1765240870848,0.01744,90538.0,90537.0,0.0110452]
[1765240872060,0.01104459,90542.0,90538.0,0.01104508]
[1765240872387,0.25650172,90538.0,90536.0,0.003]
[1765240872735,0.04922302,90537.0,90536.0,0.003]
[1765240872866,0.08381302,90537.0,90536.0,0.003]
[1765240873056,0.01104569,90533.0,90530.0,0.37089644]
[1765240873270,0.01104618,90529.0,90525.0,0.01104667]
[1765240873465,0.23836612,90528.0,90525.0,0.01104667]
[1765240874024,0.01744,90528.0,90525.0,0.01104667]
[1765240874423,0.01744,90528.0,90526.0,0.220931]
[1765240874681,0.01844,90528.0,90526.0,0.220931]
[1765240874884,0.01844,90528.0,90525.0,0.01804667]
[1765240875115,0.01844,90528.0,90525.0,0.01704667]
[1765240875308,0.01844,90528.0,90525.0,0.01804667]
[1765240875936,0.0294863,90528.0,90525.0,0.01804667]
[1765240876158,0.0284863,90528.0,90525.0,0.01204667]
[1765240876382,0.0294863,90528.0,90526.0,0.006]
[1765240876554,0.01844,90528.0,90527.0,0.22092856]
[1765240876760,0.01744,90528.0,90527.0,0.22092856]
[1765240876987,0.01844,90528.0,90527.0,0.22092856]
[1765240877419,0.01744,90528.0,90527.0,0.24365856]
[1765240877655,0.00099999,90540.0,90537.0,0.0110452]
[1765240877829,0.00099999,90540.0,90538.0,0.07720517]
[1765240877989,0.01744,90539.0,90538.0,0.07720517]
[1765240878395,0.00099999,90540.0,90538.0,0.29810512]
[1765240878601,0.01744,90539.0,90538.0,0.29810512]
[1765240878799,0.01104508,90538.0,90533.0,0.01104569]
[1765240879007,0.01104533,90536.0,90532.0,0.23195995]
[1765240879390,0.01104533,90536.0,90533.0,0.01104569]
[1765240879660,0.01104545,90535.0,90532.0,0.01104581]
[1765240880378,0.01104545,90535.0,90532.0,0.01504581]
[1765240880759,0.01399,90537.0,90533.0,0.23195961]
[1765240880959,0.01399,90537.0,90536.0,0.07720517]
[1765240882579,0.0356,90537.0,90536.0,0.08120517]
[1765240882753,0.07019,90537.0,90536.0,0.08120517]
[1765240883364,0.0356,90537.0,90536.0,0.08120517]
[1765240883591,0.07019,90537.0,90536.0,0.08120517]
[1765240883949,0.31309416,90537.0,90536.0,0.08120517]
[1765240884150,0.29109416,90537.0,90536.0,0.004]
[1765240884570,0.31309416,90537.0,90536.0,0.004]
[1765240887803,0.29109416,90537.0,90536.0,0.004]
[1765240888009,0.31309416,90537.0,90536.0,0.004]
[1765240888211,0.29109416,90537.0,90536.0,0.004]
[1765240888731,0.31309416,90537.0,90536.0,0.004]
[1765240889347,0.32414034,90537.0,90536.0,0.004]
[1765240889547,0.30853416,90537.0,90536.0,0.004]
[1765240889747,0.07019,90537.0,90536.0,0.004]
[1765240890039,0.03143,90537.0,90536.0,0.004]
[1765240890245,0.01399,90537.0,90536.0,0.004]
[1765240890448,0.03143,90537.0,90536.0,0.004]
[1765240890855,0.06602,90537.0,90536.0,0.004]
[1765240891210,0.045829,90542.0,90536.0,0.004]
[1765240891400,0.01744,90541.0,90539.0,0.01104496]
[1765240892371,0.02848472,90541.0,90537.0,0.08825037]
[1765240892566,0.02848472,90541.0,90539.0,0.003]
[1765240892567,0.04563484,90540.0,90539.0,0.003]
[1765240892993,0.01104484,90540.0,90539.0,0.003]
[1765240894314,0.01104484,90540.0,90537.0,0.07720517]
[1765240894527,0.02848472,90541.0,90538.0,0.01104508]
[1765240894817,0.02848472,90541.0,90539.0,0.003]
[1765240895015,0.02848472,90541.0,90538.0,0.01104508]
[1765240895523,0.02848472,90541.0,90539.0,0.003]
[1765240895722,0.01399,90539.0,90538.0,0.01104508]
[1765240896087,0.03143,90539.0,90538.0,0.01104508]
[1765240896486,0.022,90537.0,90536.0,0.07720517]
[1765240896711,0.04361,90537.0,90536.0,0.07720517]
[1765240896889,0.0782,90537.0,90536.0,0.07720517]
[1765240897089,0.27710416,90537.0,90536.0,0.07720517]
[1765240897290,0.29910416,90537.0,90536.0,0.07720517]
[1765240897679,0.27710416,90537.0,90536.0,0.07720517]
[1765240898228,0.27810416,90537.0,90536.0,0.08220517]
[1765240899086,0.27810416,90537.0,90536.0,0.08320517]
[1765240900067,0.0572,90537.0,90536.0,0.08320517]
[1765240900271,0.02261,90537.0,90536.0,0.08320517]
[1765240900490,0.001,90537.0,90536.0,0.08320517]
[1765240900673,0.01844,90537.0,90536.0,0.13873517]
[1765240901065,0.01844,90537.0,90536.0,0.08320517]
[1765240901471,0.01844,90537.0,90536.0,0.08220517]
[1765240901888,0.01744,90537.0,90536.0,0.07820517]
[1765240902084,0.01744,90537.0,90536.0,0.29911177]
[1765240902299,0.01844,90537.0,90536.0,0.30511177]
[1765240903184,0.001,90537.0,90536.0,0.30511177]
[1765240903384,0.01844,90537.0,90536.0,0.30511177]
[1765240904803,0.01844,90537.0,90536.0,0.08420517]
[1765240905234,0.07441,90537.0,90536.0,0.007]
[1765240905976,0.07602287,90537.0,90536.0,0.007]
[1765240906545,0.09802287,90537.0,90536.0,0.007]
[1765240907603,0.12563589,90537.0,90536.0,0.007]
[1765240909701,0.10363589,90537.0,90536.0,0.007]
[1765240911508,0.12563589,90537.0,90536.0,0.007]
[1765240911705,0.10363589,90537.0,90536.0,0.007]
[1765240911911,0.12563589,90537.0,90536.0,0.007]
[1765240918554,0.10363589,90537.0,90536.0,0.007]
[1765240918739,0.12563589,90537.0,90536.0,0.007]
[1765240919664,0.07602287,90537.0,90536.0,0.007]
[1765240919963,0.10363589,90537.0,90536.0,0.007]
[1765240920170,0.12563589,90537.0,90536.0,0.007]
[1765240920323,0.10363589,90537.0,90536.0,0.007]
[1765240920952,0.12563589,90537.0,90536.0,0.007]
[1765240924436,0.09802287,90537.0,90536.0,0.007]
[1765240926669,0.12563589,90537.0,90536.0,0.007]
[1765240926847,0.11395652,90537.0,90536.0,0.007]
[1765240927031,0.13595652,90537.0,90536.0,0.007]
[1765240927561,0.13595652,90537.0,90536.0,0.006]
[1765240928491,0.022,90528.0,90527.0,0.37127522]
[1765240928649,0.03304667,90525.0,90521.0,8.569e-05]
[1765240928858,0.036,90523.0,90521.0,8.569e-05]
[1765240929248,0.06735,90523.0,90521.0,8.569e-05]
[1765240929849,0.28828832,90523.0,90522.0,0.08120517]
[1765240930052,0.28828832,90523.0,90522.0,0.07720517]
[1765240930451,0.28828832,90523.0,90522.0,0.08220517]
[1765240930674,0.28828832,90523.0,90522.0,0.08320517]
[1765240931329,0.01744,90524.0,90522.0,0.08320517]
[1765240931540,0.01744,90524.0,90522.0,0.07820517]
[1765240931882,0.01744,90524.0,90522.0,0.30214361]
[1765240932081,0.01744,90524.0,90522.0,0.29914361]
[1765240932519,0.01744,90524.0,90522.0,0.30214361]
[1765240932719,0.01744,90524.0,90522.0,0.30114361]
[1765240932931,0.01744,90524.0,90522.0,0.30214361]
[1765240933302,0.23837694,90524.0,90522.0,0.08120517]
[1765240934251,0.23837642,90524.0,90522.0,0.08120517]
[1765240934852,0.01744,90524.0,90522.0,0.08120517]
[1765240935278,0.01744,90524.0,90522.0,0.30214547]
[1765240936230,0.01744,90524.0,90522.0,0.08120517]
[1765240936968,0.23837755,90524.0,90522.0,0.08120517]
[1765240937532,0.01744,90524.0,90522.0,0.08120517]
[1765240938958,0.01744,90524.0,90522.0,0.30214415]
[1765240939386,0.01744,90524.0,90522.0,0.08120517]
[1765240942166,0.01744,90524.0,90522.0,0.31613434]
[1765240942373,0.01744,90524.0,90523.0,0.02071]
[1765240942813,0.022,90533.0,90523.0,0.02071]
[1765240942814,0.01744,90537.0,90536.0,0.2209066]
[1765240943052,0.0103226,90548.0,90545.0,0.01104423]
[1765240943254,0.01541,90550.0,90548.0,0.22087543]
[1765240943532,0.01104325,90553.0,90549.0,0.01104374]
[1765240943749,0.01104313,90554.0,90550.0,0.23191606]
[1765240943877,0.01744,90552.0,90550.0,0.23191606]
[1765240944303,0.01744,90552.0,90548.0,0.01104386]
[1765240944524,0.01744,90551.0,90548.0,0.01104386]
[1765240944832,0.01744,90551.0,90548.0,0.01112955]
[1765240945400,0.03235,90551.0,90548.0,0.01112955]
[1765240946258,0.0433935,90551.0,90548.0,0.01112955]
[1765240946816,0.03335,90551.0,90549.0,0.22087488]
[1765240947116,0.01844,90551.0,90549.0,0.22087488]
[1765240947516,0.01844,90551.0,90548.0,0.01112955]
[1765240947817,0.03335,90551.0,90548.0,0.01112955]
[1765240948021,0.06365,90551.0,90548.0,0.01112955]
[1765240948225,0.06265,90551.0,90548.0,0.01112955]
[1765240948424,0.06365,90551.0,90548.0,0.01112955]
[1765240948591,0.06265,90551.0,90548.0,0.01112955]
[1765240948792,0.26526352,90551.0,90548.0,0.01112955]
[1765240949106,0.26526352,90551.0,90548.0,8.569e-05]
[1765240949301,0.26626352,90551.0,90548.0,8.569e-05]
[1765240954549,0.28826352,90551.0,90548.0,8.569e-05]
[1765240955161,0.26626352,90551.0,90548.0,8.569e-05]
[1765240955570,0.25612488,90549.0,90548.0,8.569e-05]
[1765240955839,0.25773775,90549.0,90548.0,8.569e-05]
[1765240956046,0.28703775,90549.0,90548.0,8.569e-05]
[1765240956206,0.30903775,90549.0,90548.0,8.569e-05]
[1765240956384,0.28703775,90549.0,90548.0,8.569e-05]
[1765240956862,0.30903775,90549.0,90548.0,8.569e-05]
[1765240957065,0.31103775,90549.0,90548.0,8.569e-05]
[1765240957417,0.06816287,90549.0,90548.0,8.569e-05]
[1765240958246,0.01858287,90549.0,90548.0,8.569e-05]
[1765240958484,0.00361287,90549.0,90548.0,8.569e-05]
[1765240963351,0.02105287,90549.0,90548.0,8.569e-05]